bitfinex-derivatives/quotes_SOLF0:USTF0_20251119
["timestamp","ask_amount","ask_price","bid_price","bid_amount"]
[1763576282132,3.1338604,131.51,131.46,3.16]
[1763576282330,3.08,131.58,131.48,109.725]
[1763576282528,3.08,131.58,131.49,3.16]
[1763576282833,3.08,131.58,131.5,16.18]
[1763576283233,3.08,131.56,131.47,10.86043029]
[1763576283537,3.08,131.54,131.5,0.05282791]
[1763576283733,0.05822146,131.53,131.5,0.05282791]
[1763576284335,3.13822146,131.53,131.5,0.05282791]
[1763576284639,9.9288,131.52,131.5,0.05282791]
[1763576285029,3.08,131.52,131.5,0.05282791]
[1763576285541,9.9288,131.52,131.5,0.05282791]
[1763576285741,3.13822146,131.53,131.5,0.05282791]
[1763576285936,0.05822146,131.53,131.5,0.05282791]
[1763576286238,3.13822146,131.53,131.5,0.05282791]
[1763576286638,3.08,131.51,131.5,0.05282791]
[1763576286941,9.9289,131.52,131.5,0.05282791]
[1763576287443,3.08,131.47,131.43,16.18]
[1763576287839,3.08,131.47,131.39,9.07808585]
[1763576288043,109.6599,131.47,131.4,16.18]
[1763576288235,109.7932,131.43,131.39,2.03003734]
[1763576288540,3.18,131.42,131.39,2.03003734]
[1763576288847,0.05457444,131.42,131.39,5.41003734]
[1763576289147,0.05457444,131.42,131.39,2.03003734]
[1763576289347,0.05457444,131.42,131.39,5.41003734]
[1763576289536,0.05457444,131.42,131.4,3.38]
[1763576290446,0.05457444,131.42,131.39,2.03003734]
[1763576291147,3.23457444,131.42,131.39,2.03003734]
[1763576292348,3.18,131.41,131.35,16.2]
[1763576292543,0.05242531,131.39,131.36,3.38]
[1763576292738,1.48,131.45,131.36,3.38]
[1763576292943,0.04913434,131.39,131.36,3.38]
[1763576293243,0.05336831,131.39,131.32,3.38]
[1763576293545,113.5502,131.33,131.24,3.38]
[1763576293748,108.1417,131.37,131.26,3.38]
[1763576293951,1.48,131.36,131.26,3.38]
[1763576294247,1.48,131.32,131.25,19.6]
[1763576294573,106.6914,131.33,131.26,3.38]
[1763576294743,0.04937839,131.3,131.22,3.38]
[1763576294940,1.48,131.34,131.24,3.38]
[1763576295140,106.6629,131.37,131.27,3.38]
[1763576295141,16.22,131.36,131.27,3.38]
[1763576295344,1.53,131.37,131.28,0.05096766]
[1763576295548,1.53,131.37,131.27,3.38]
[1763576295748,1.53,131.37,131.27,19.62]
[1763576295950,1.53,131.32,131.23,19.62]
[1763576296149,1.53,131.32,131.24,3.38]
[1763576296451,0.04885308,131.29,131.26,0.05096766]
[1763576296948,0.04885308,131.29,131.26,3.43096766]
[1763576297950,1.53,131.35,131.26,3.43096766]
[1763576298144,1.53,131.33,131.22,3.38]
[1763576298453,1.53,131.32,131.22,3.38]
[1763576298655,108.2402,131.31,131.22,3.38]
[1763576298850,106.7245,131.29,131.22,3.38]
[1763576299153,106.7102,131.31,131.25,0.05476575]
[1763576299154,0.05470497,131.28,131.25,0.05476575]
[1763576299348,1.53,131.36,131.26,110.123]
[1763576299652,1.53,131.36,131.28,3.38]
[1763576300440,0.05118756,131.33,131.31,0.04881031]
[1763576300642,0.05118756,131.33,131.31,3.42881031]
[1763576300844,1.58,131.4,131.31,3.42881031]
[1763576301150,1.58,131.4,131.31,3.38]
[1763576301356,1.58,131.4,131.29,106.7195]
[1763576301357,1.58,131.38,131.29,16.26]
[1763576301551,1.58,131.38,131.3,3.38]
[1763576302054,108.2215,131.33,131.26,3.38]
[1763576302349,108.2209,131.33,131.26,3.38]
[1763576302565,1.53,131.33,131.26,3.38]
[1763576303145,0.05046187,131.31,131.28,3.43487587]
[1763576303345,0.05580223,131.31,131.28,3.43275285]
[1763576304158,1.58580223,131.31,131.28,0.05275285]
[1763576304358,0.05580223,131.31,131.28,3.43275285]
[1763576304750,1.58580223,131.31,131.28,0.05275285]
[1763576305051,1.49,131.29,131.2,13.97043029]
[1763576305267,1.49,131.28,131.21,16.28]
[1763576305452,1.49,131.26,131.2,3.11]
[1763576305658,1.49,131.26,131.19,19.39]
[1763576306147,0.05769258,131.24,131.21,0.05495039]
[1763576306352,0.05769258,131.24,131.21,3.16495039]
[1763576307459,0.05769258,131.24,131.21,0.05495039]
[1763576307651,0.05769258,131.24,131.21,3.16495039]
[1763576307848,0.05769258,131.24,131.22,3.11]
[1763576308256,0.05769258,131.24,131.21,0.05495039]
[1763576308656,1.54769258,131.24,131.21,0.05495039]
[1763576309462,0.05769258,131.24,131.21,0.05495039]
[1763576309856,8.41129258,131.24,131.21,0.05495039]
[1763576310054,0.05769258,131.24,131.21,0.05495039]
[1763576310955,115.17509258,131.24,131.21,0.05495039]
[1763576311150,1.49,131.23,131.21,0.05495039]
[1763576311350,1.49,131.22,131.16,3.11]
[1763576311756,1.49,131.26,131.16,3.11]
[1763576311961,1.49,131.26,131.17,3.11]
[1763576312158,1.49,131.26,131.17,109.9295]
[1763576312355,1.54357748,131.23,131.2,0.04561899]
[1763576312653,0.05357748,131.23,131.2,0.04561899]
[1763576313250,1.54357748,131.23,131.2,0.04561899]
[1763576313647,108.31517748,131.23,131.2,0.04561899]
[1763576313852,1.49,131.22,131.14,16.3]
[1763576314052,1.49,131.22,131.14,19.41]
[1763576314247,1.49,131.22,131.15,3.11]
[1763576314457,8.3531,131.25,131.15,109.9461]
[1763576314656,129.24614701,131.32,131.17,3.11]
[1763576314657,12.35043029,131.28,131.17,3.11]
[1763576314861,0.05058563,131.24,131.18,9.9762]
[1763576315266,1.54058563,131.24,131.12,13.84316767]
[1763576315469,0.04913841,131.19,131.14,3.11]
[1763576315759,0.04913841,131.19,131.14,9.9783]
[1763576315950,0.04913841,131.19,131.16,109.9369]
[1763576316157,0.04913841,131.19,131.17,3.11]
[1763576316354,6.97406767,131.28,131.17,3.11]
[1763576316355,1.49,131.27,131.2,6.8651]
[1763576316552,1.54,131.31,131.21,3.11]
[1763576316864,1.54,131.31,131.22,6.8641]
[1763576317258,0.04868887,131.28,131.25,3.15913841]
[1763576317564,0.05087766,131.28,131.27,3.11]
[1763576318855,1.54,131.35,131.27,3.11]
[1763576319253,1.53,131.34,131.27,3.11]
[1763576319455,8.3884,131.34,131.28,16.3]
[1763576319759,1.53,131.34,131.28,16.3]
[1763576319960,1.58778373,131.32,131.3,0.05123773]
[1763576320261,0.04940533,131.32,131.3,0.05123773]
[1763576322251,1.57940533,131.32,131.3,0.05123773]
[1763576322555,0.04940533,131.32,131.3,0.05123773]
[1763576322957,1.57940533,131.32,131.3,0.05123773]
[1763576325065,0.04940533,131.32,131.3,0.05123773]
[1763576325361,1.57940533,131.32,131.3,0.05123773]
[1763576326053,0.04940533,131.32,131.3,0.05123773]
[1763576326463,0.04940533,131.32,131.3,3.32123773]
[1763576327463,0.04940533,131.32,131.31,3.27]
[1763576327658,0.04940533,131.32,131.3,16.33123773]
[1763576327659,1.53,131.39,131.33,3.27]
[1763576328668,1.53,131.36,131.35,0.05604313]
[1763576328964,1.53,131.36,131.34,0.05438687]
[1763576329160,1.58734823,131.36,131.34,0.05118365]
[1763576329969,0.05734823,131.36,131.34,3.32118365]
[1763576333171,8.50406767,131.43,131.34,3.32118365]
[1763576333470,6.8545,131.41,131.34,3.27]
[1763576333769,1.59,131.4,131.32,3.27]
[1763576334174,0.05109521,131.37,131.35,0.05635113]
[1763576334874,8.49769521,131.37,131.35,0.05635113]
[1763576335266,1.59,131.36,131.35,0.05635113]
[1763576335477,6.8588,131.33,131.29,3.27]
[1763576336480,1.59,131.38,131.31,3.27]
[1763576336972,6.8566,131.37,131.31,3.27]
[1763576337174,108.2444,131.38,131.31,3.27]
[1763576337472,0.05522483,131.36,131.33,0.05846735]
[1763576337662,0.05522483,131.36,131.34,3.27]
[1763576338282,1.69522483,131.36,131.32,3.32415668]
[1763576338572,0.05522483,131.36,131.32,3.32415668]
[1763576340371,1.64,131.42,131.34,3.27]
[1763576340575,108.2603,131.42,131.34,3.27]
[1763576340773,1.7,131.41,131.34,19.53]
[1763576340969,1.7,131.41,131.35,3.27]
[1763576341273,1.7,131.44,131.36,3.27]
[1763576341473,0.05163517,131.39,131.37,3.32364662]
[1763576341674,0.04848732,131.39,131.37,3.32364662]
[1763576341869,6.8535,131.43,131.37,3.32364662]
[1763576342075,108.3048,131.44,131.37,3.32364662]
[1763576342666,6.8546,131.41,131.37,3.32364662]
[1763576342866,1.7511061,131.4,131.37,0.05364662]
[1763576343671,6.8556,131.39,131.37,0.05364662]
[1763576343869,1.7511061,131.4,131.37,3.32364662]
[1763576343870,0.0511061,131.4,131.37,3.32364662]
[1763576344074,1.7,131.46,131.39,3.27]
[1763576344275,8.5519,131.46,131.4,10.1249]
[1763576344476,1.7,131.46,131.4,10.1249]
[1763576344777,1.7,131.53,131.44,3.27]
[1763576344981,1.7,131.56,131.46,3.27]
[1763576345282,1.7,131.56,131.45,129.82286767]
[1763576345283,1.75247929,131.5,131.45,3.27]
[1763576345678,0.04978368,131.49,131.46,0.04905787]
[1763576346683,1.74978368,131.49,131.46,0.04905787]
[1763576346881,0.04978368,131.49,131.46,0.04905787]
[1763576347084,108.2948,131.45,131.38,3.27]
[1763576347277,1.7,131.43,131.34,19.53]
[1763576347473,113.56636767,131.46,131.35,3.27]
[1763576347678,1.7,131.47,131.36,3.27]
[1763576347873,108.2804,131.47,131.36,3.27]
[1763576348076,6.8521,131.46,131.36,3.27]
[1763576348381,0.05434418,131.43,131.4,3.35242649]
[1763576348679,0.05434418,131.43,131.4,26.48712649]
[1763576348878,0.05434418,131.43,131.41,3.3]
[1763576349783,1.74434418,131.43,131.4,0.05242649]
[1763576349987,0.05434418,131.43,131.4,0.05242649]
[1763576350786,0.05434418,131.43,131.4,3.35242649]
[1763576351671,1.69,131.41,131.33,10.27406767]
[1763576351871,1.69,131.41,131.34,3.3]
[1763576352383,6.8552,131.4,131.34,3.3]
[1763576352585,1.69,131.41,131.34,3.3]
[1763576352776,1.69,131.41,131.36,0.05366322]
[1763576352777,0.05167098,131.39,131.36,0.05366322]
[1763576353082,0.05167098,131.39,131.36,3.35366322]
[1763576353281,1.69,131.46,131.37,3.3]
[1763576353488,6.8516,131.47,131.4,3.3]
[1763576353784,1.74,131.49,131.4,3.3]
[1763576354183,6.851,131.48,131.4,3.3]
[1763576354382,0.05482753,131.45,131.43,3.34928014]
[1763576354580,1.79482753,131.45,131.43,0.04928014]
[1763576354782,1.74,131.44,131.43,0.04928014]
[1763576354985,1.74,131.44,131.39,16.28]
[1763576355683,6.8536,131.43,131.39,16.28]
[1763576355886,0.05633417,131.42,131.4,0.05434883]
[1763576357185,326.61456767,131.51,131.4,0.05434883]
[1763576357186,1.74,131.49,131.41,3.3]
[1763576357685,6.851,131.48,131.41,3.3]
[1763576358383,1.74,131.49,131.43,3.35594626]
[1763576358384,0.05617012,131.46,131.43,3.35594626]
[1763576358580,1.85617012,131.46,131.43,0.05594626]
[1763576358776,8.6526,131.45,131.43,0.05594626]
[1763576358983,1.8,131.43,131.36,19.58]
[1763576359182,106.6028,131.44,131.37,3.3]
[1763576359390,1.74,131.4,131.36,16.28]
[1763576359686,106.6238,131.42,131.36,16.28]
[1763576359687,1.74,131.44,131.37,3.3]
[1763576360084,0.05331217,131.42,131.39,0.04900801]
[1763576360591,0.05331217,131.42,131.39,3.34900801]
[1763576361379,0.05331217,131.42,131.39,0.04900801]
[1763576361683,0.05331217,131.42,131.39,3.34900801]
[1763576362286,6.8544,131.41,131.39,0.04900801]
[1763576363685,0.05331217,131.42,131.39,3.34900801]
[1763576365792,1.79331217,131.42,131.39,0.04900801]
[1763576366090,0.05331217,131.42,131.39,3.37900801]
[1763576366391,1.79331217,131.42,131.39,0.04900801]
[1763576367091,6.8546,131.41,131.39,0.04900801]
[1763576367393,0.05331217,131.42,131.39,3.37900801]
[1763576367995,1.74,131.49,131.41,3.33]
[1763576368287,108.3033,131.49,131.41,3.33]
[1763576369194,0.05371796,131.46,131.44,0.04955714]
[1763576369599,0.05371796,131.46,131.44,3.37955714]
[1763576370192,8.76406767,131.53,131.44,3.37955714]
[1763576370398,1.79,131.53,131.44,3.33]
[1763576370899,108.3269,131.52,131.44,3.33]
[1763576371199,108.3269,131.52,131.47,0.05269224]
[1763576371200,1.79,131.48,131.47,0.05269224]
[1763576371393,8.6408,131.48,131.47,0.05269224]
[1763576372098,106.5771,131.47,131.41,3.33]
[1763576372892,1.79,131.47,131.41,3.33]
[1763576373185,113.54066767,131.49,131.43,3.38405847]
[1763576373186,0.04961432,131.45,131.43,3.38405847]
[1763576373394,8.69211432,131.45,131.43,0.05405847]
[1763576375100,0.04961432,131.45,131.43,3.38405847]
[1763576375302,1.79,131.53,131.43,3.38405847]
[1763576375494,108.3214,131.53,131.43,3.33]
[1763576375694,1.84,131.52,131.43,3.33]
[1763576375891,106.5799,131.47,131.39,10.37804851]
[1763576376397,0.04892884,131.44,131.42,0.05578382]
[1763576377202,0.04892884,131.44,131.42,3.38578382]
[1763576377699,6.8507,131.49,131.42,3.38578382]
[1763576377904,1.84,131.5,131.42,3.38578382]
[1763576378202,1.84,131.5,131.42,3.33]
[1763576378405,6.8509,131.48,131.42,3.33]
[1763576378603,0.04866869,131.46,131.44,3.23507818]
[1763576381797,8.74056869,131.46,131.44,0.05507818]
[1763576382097,6.90056869,131.46,131.44,0.05507818]
[1763576382301,0.04866869,131.46,131.44,3.42507818]
[1763576382500,6.90056869,131.46,131.44,3.42507818]
[1763576383209,0.04866869,131.46,131.44,3.42507818]
[1763576384402,1.88866869,131.46,131.44,0.05507818]
[1763576384801,8.74086869,131.46,131.44,0.05507818]
[1763576385401,6.90086869,131.46,131.44,0.05507818]
[1763576385604,8.74086869,131.46,131.44,0.05507818]
[1763576385800,6.90086869,131.46,131.44,0.05507818]
[1763576387705,6.90086869,131.46,131.44,3.42507818]
[1763576388699,1.88866869,131.46,131.44,0.05507818]
[1763576389404,8.74076869,131.46,131.44,0.05507818]
[1763576389707,1.84,131.44,131.39,7.04804851]
[1763576389897,1.84,131.44,131.39,3.37]
[1763576389898,6.8541,131.42,131.39,3.37]
[1763576390104,1.84,131.42,131.39,7.04804851]
[1763576390301,6.8537,131.43,131.39,3.37]
[1763576390606,0.04824496,131.42,131.4,10.46621663]
[1763576390804,0.05370299,131.42,131.4,3.41816812]
[1763576391005,6.8521,131.46,131.41,10.41804851]
[1763576391306,6.8521,131.46,131.42,3.37]
[1763576391513,1.89,131.44,131.4,7.04804851]
[1763576391811,106.5874,131.46,131.4,3.37]
[1763576392107,0.05472003,131.44,131.42,0.04983947]
[1763576392800,6.90782003,131.44,131.42,0.04983947]
[1763576393111,0.05472003,131.44,131.42,3.41983947]
[1763576393501,0.05472003,131.44,131.43,3.37]
[1763576397415,1.89,131.5,131.43,3.37]
[1763576397614,108.514,131.49,131.43,7.04804851]
[1763576397815,108.514,131.49,131.42,7.04804851]
[1763576398516,0.04982127,131.47,131.44,3.42818769]
[1763576399015,6.8521,131.46,131.44,3.42818769]
[1763576400020,6.8521,131.46,131.44,0.05818769]
[1763576400318,8.8021,131.46,131.44,0.05818769]
[1763576401113,6.8521,131.46,131.44,3.42818769]
[1763576401612,0.04982127,131.47,131.44,3.42818769]
[1763576402019,1.99982127,131.47,131.44,0.05818769]
[1763576402215,6.852,131.46,131.44,0.05818769]
[1763576403010,8.802,131.46,131.44,0.05818769]
[1763576403212,6.852,131.46,131.44,0.05818769]
[1763576403918,0.04982127,131.47,131.44,0.05818769]
[1763576404114,1.99982127,131.47,131.44,0.05818769]
[1763576404321,1.89,131.44,131.4,7.04804851]
[1763576404514,1.89,131.44,131.39,10.41804851]
[1763576405122,1.89,131.44,131.4,3.37]
[1763576405416,0.05610516,131.43,131.41,0.04897077]
[1763576405617,1.94610516,131.43,131.41,0.04897077]
[1763576405823,8.744,131.42,131.41,0.04897077]
[1763576406319,6.90950516,131.43,131.41,0.04897077]
[1763576406824,8.79950516,131.43,131.41,0.04897077]
[1763576408226,8.79950516,131.43,131.41,3.22897077]
[1763576408227,0.05610516,131.43,131.41,3.22897077]
[1763576408522,0.05610516,131.43,131.41,7.09701928]
[1763576408723,0.05610516,131.43,131.41,0.04897077]
[1763576409420,8.79960516,131.43,131.41,0.04897077]
[1763576410024,6.90960516,131.43,131.41,3.22897077]
[1763576410720,6.90960516,131.43,131.41,0.04897077]
[1763576411921,0.05610516,131.43,131.41,0.04897077]
[1763576412124,1.94610516,131.43,131.41,0.04897077]
[1763576412517,106.67170516,131.43,131.38,10.22804851]
[1763576412714,0.05610516,131.43,131.39,3.18]
[1763576412914,6.91000516,131.43,131.39,3.18]
[1763576413225,1.94610516,131.43,131.39,10.22804851]
[1763576413722,6.8539,131.42,131.4,0.04798544]
[1763576413919,0.05610516,131.43,131.4,10.27603395]
[1763576414119,6.90950516,131.43,131.41,10.22804851]
[1763576415022,0.05610516,131.43,131.41,7.04804851]
[1763576415230,0.05610516,131.43,131.41,10.22804851]
[1763576415421,0.05610516,131.43,131.42,3.18]
[1763576415619,0.05610516,131.43,131.42,10.22804851]
[1763576415924,0.05610516,131.43,131.41,7.04804851]
[1763576416224,0.05610516,131.43,131.42,3.18]
[1763576416422,1.89,131.52,131.43,3.18]
[1763576416624,1.89,131.52,131.48,10.28992826]
[1763576416818,6.8493,131.51,131.48,10.28992826]
[1763576417021,108.411,131.54,131.49,10.28992826]
[1763576417219,106.5134,131.55,131.5,3.18]
[1763576417418,0.0527925,131.54,131.51,0.051625]
[1763576418015,0.0527925,131.54,131.51,3.231625]
[1763576418421,1.9427925,131.54,131.51,0.051625]
[1763576418727,1.89,131.53,131.51,0.051625]
[1763576418923,6.8487,131.52,131.51,0.051625]
[1763576419628,1.89,131.53,131.51,0.051625]
[1763576420015,8.7384,131.53,131.51,0.051625]
[1763576420220,0.0527925,131.54,131.47,3.18]
[1763576420428,106.5285,131.53,131.47,3.18]
[1763576420622,6.93513515,131.58,131.47,3.18]
[1763576420623,1.84,131.52,131.47,7.10992826]
[1763576420820,1.84,131.46,131.42,7.10992826]
[1763576421021,106.5687,131.48,131.42,10.28992826]
[1763576421225,0.05466037,131.46,131.44,0.05709465]
[1763576421715,1.84,131.45,131.44,0.05709465]
[1763576421922,108.4507,131.43,131.4,7.10992826]
[1763576422115,108.4507,131.43,131.39,9.47990435]
[1763576422116,108.4507,131.43,131.39,7.10992826]
[1763576422330,108.4196,131.47,131.4,3.18]
[1763576422532,108.4337,131.45,131.4,3.18]
[1763576422728,6.8536,131.43,131.4,3.18]
[1763576422921,0.05052165,131.43,131.41,3.18]
[1763576423122,0.05052165,131.43,131.42,3.18]
[1763576423728,106.5697,131.48,131.42,4.7]
[1763576424027,6.8522,131.46,131.44,3.18]
[1763576424229,106.5931,131.45,131.42,7.10992826]
[1763576424432,106.5931,131.45,131.41,7.10992826]
[1763576424617,106.5931,131.45,131.4,10.28992826]
[1763576424824,108.540337,131.44,131.41,0.05590144]
[1763576425827,6.8541,131.42,131.41,0.05590144]
[1763576426028,108.544537,131.44,131.41,0.05590144]
[1763576426330,8.7236,131.43,131.41,0.05590144]
[1763576426926,6.8536,131.43,131.41,0.05590144]
[1763576427133,6.8536,131.43,131.41,3.21590144]
[1763576427525,0.048737,131.44,131.41,3.21590144]
[1763576427727,0.048737,131.44,131.42,7.10992826]
[1763576427921,6.8509,131.48,131.44,3.16]
[1763576428127,106.5419,131.52,131.45,3.16]
[1763576428324,106.5536,131.5,131.45,3.16]
[1763576428722,1.92,131.52,131.45,3.16]
[1763576428928,0.05166205,131.5,131.47,0.05444756]
[1763576429229,0.05166205,131.5,131.47,10.32437582]
[1763576429421,0.05166205,131.5,131.48,3.16]
[1763576430434,1.97166205,131.5,131.47,0.05444756]
[1763576430736,6.8505,131.49,131.47,0.05444756]
[1763576430930,0.05166205,131.5,131.47,3.21444756]
[1763576431338,6.90156205,131.5,131.47,3.21444756]
[1763576432131,0.05166205,131.5,131.47,3.21444756]
[1763576432332,0.05166205,131.5,131.47,10.32437582]
[1763576432541,1.92,131.56,131.48,3.16]
[1763576432733,1.92,131.56,131.49,3.16]
[1763576432939,1.92,131.56,131.5,3.16]
[1763576433147,1.92,131.54,131.48,7.10992826]
[1763576433446,1.92,131.51,131.46,7.10992826]
[1763576433639,6.8512,131.48,131.47,0.05221156]
[1763576433842,6.8512,131.48,131.46,0.0527502]
[1763576434040,0.04876581,131.48,131.46,0.04956574]
[1763576434243,0.04876581,131.48,131.46,3.20956574]
[1763576434844,6.89986581,131.48,131.46,3.20956574]
[1763576435354,0.04876581,131.48,131.46,3.20956574]
[1763576435856,6.89986581,131.48,131.46,0.04956574]
[1763576436153,1.92,131.47,131.46,0.04956574]
[1763576436645,6.89986581,131.48,131.46,0.04956574]
[1763576438142,0.04876581,131.48,131.46,0.04956574]
[1763576438841,1.94,131.47,131.46,0.04956574]
[1763576439055,6.89976581,131.48,131.39,10.21992826]
[1763576439056,108.5426,131.44,131.39,10.21992826]
[1763576439351,108.5426,131.44,131.4,3.11]
[1763576439554,6.8539,131.42,131.4,3.11]
[1763576439950,6.90721624,131.42,131.4,0.05229309]
[1763576440547,1.94,131.41,131.4,0.05229309]
[1763576441349,6.90721624,131.42,131.4,0.05229309]
[1763576441350,1.99331624,131.42,131.4,0.05229309]
[1763576441956,1.99331624,131.42,131.4,3.16229309]
[1763576441957,6.90731624,131.42,131.4,3.16229309]
[1763576442255,0.05331624,131.42,131.4,3.16229309]
[1763576443147,6.90751624,131.42,131.4,0.05229309]
[1763576445457,0.05331624,131.42,131.4,3.16229309]
[1763576446860,0.05331624,131.42,131.41,3.11]
[1763576447258,106.5796,131.47,131.41,3.11]
[1763576447555,6.8523,131.46,131.41,3.11]
[1763576447754,6.8523,131.46,131.42,3.11]
[1763576447955,108.5025,131.49,131.42,3.11]
[1763576448154,0.04795962,131.47,131.44,3.15953603]
[1763576448351,0.04795962,131.47,131.44,10.26946429]
[1763576448656,0.04795962,131.47,131.45,3.11]
[1763576449054,0.04795962,131.47,131.44,7.15946429]
[1763576449055,1.98795962,131.47,131.44,0.04953603]
[1763576449259,8.7919,131.46,131.44,0.04953603]
[1763576450148,6.8519,131.46,131.44,0.04953603]
[1763576451963,8.7919,131.46,131.44,0.04953603]
[1763576452262,6.8519,131.46,131.44,0.04953603]
[1763576453068,8.7919,131.46,131.44,0.04953603]
[1763576453269,1.94,131.45,131.44,0.04953603]
[1763576453659,6.8519,131.46,131.44,0.04953603]
[1763576453865,108.56805962,131.47,131.44,0.04953603]
[1763576454061,1.94,131.46,131.44,0.04953603]
[1763576454864,8.7919,131.46,131.44,0.04953603]
[1763576455067,1.94,131.46,131.44,0.04953603]
[1763576455370,6.8544,131.41,131.39,7.10992826]
[1763576455562,108.5084,131.42,131.37,10.21992826]
[1763576456362,6.8553,131.4,131.38,3.15946087]
[1763576456566,0.05458577,131.41,131.39,3.11]
[1763576456867,0.05458577,131.41,131.39,10.21992826]
[1763576457466,0.05458577,131.41,131.4,3.11]
[1763576459778,1.89,131.47,131.4,10.21992826]
[1763576459979,1.89,131.47,131.41,3.11]
[1763576460166,106.5707,131.48,131.42,3.11]
[1763576460468,106.5707,131.48,131.42,10.21992826]
[1763576460666,0.05507023,131.46,131.44,0.05588328]
[1763576460971,0.05507023,131.46,131.44,3.16588328]
[1763576461161,6.90697023,131.46,131.44,3.16588328]
[1763576461362,0.05507023,131.46,131.44,3.16588328]
[1763576461762,6.90697023,131.46,131.44,3.16588328]
[1763576462565,6.90697023,131.46,131.44,0.05588328]
[1763576462566,8.84697023,131.46,131.44,0.05588328]
[1763576462773,6.90697023,131.46,131.44,0.05588328]
[1763576463166,0.05507023,131.46,131.44,3.16588328]
[1763576463673,0.05507023,131.46,131.44,10.27581154]
[1763576463969,0.05507023,131.46,131.45,3.11]
[1763576464368,0.05507023,131.46,131.44,0.05588328]
[1763576464570,0.05507023,131.46,131.44,3.16588328]
[1763576464971,1.94,131.56,131.46,3.11]
[1763576465162,1.94,131.56,131.48,3.11]
[1763576465364,1.94,131.56,131.49,10.19620394]
[1763576465776,113.42394373,131.6,131.47,9.47990435]
[1763576465777,1.94,131.52,131.47,7.08620394]
[1763576465972,1.94,131.49,131.48,0.05223145]
[1763576467362,6.8498,131.5,131.48,0.05223145]
[1763576467771,6.8498,131.5,131.48,3.44223145]
[1763576467973,0.05234942,131.51,131.48,3.44223145]
[1763576468383,8.8,131.5,131.48,0.05223145]
[1763576468579,1.95,131.49,131.48,0.05223145]
[1763576468877,1.95,131.47,131.43,3.39]
[1763576469083,6.8525,131.45,131.42,7.08620394]
[1763576469378,1.95,131.45,131.4,3.39]
[1763576469583,6.8542,131.42,131.39,7.08620394]
[1763576469782,6.8542,131.42,131.39,3.44541224]
[1763576470078,6.9063392,131.42,131.39,3.44541224]
[1763576470664,0.0521392,131.42,131.39,3.44541224]
[1763576471380,6.9062392,131.42,131.39,3.44541224]
[1763576471579,108.6221392,131.42,131.39,0.05541224]
[1763576471880,1.95,131.41,131.39,0.05541224]
[1763576472081,8.8047,131.41,131.39,0.05541224]
[1763576472580,6.8547,131.41,131.39,0.05541224]
[1763576472980,106.6721392,131.42,131.39,3.44541224]
[1763576472981,0.0521392,131.42,131.39,3.44541224]
[1763576473572,0.0521392,131.42,131.4,3.39]
[1763576473778,0.0521392,131.42,131.41,3.39]
[1763576473978,0.0521392,131.42,131.41,10.47620394]
[1763576474584,1.95,131.47,131.42,3.39]
[1763576474778,1.95,131.47,131.42,10.47620394]
[1763576475576,0.05175756,131.46,131.43,0.05497749]
[1763576476081,0.05175756,131.46,131.43,3.44497749]
[1763576476280,0.05175756,131.46,131.44,3.39]
[1763576476581,0.05175756,131.46,131.45,10.47620394]
[1763576476779,1.95,131.53,131.45,10.47620394]
[1763576477081,106.5211,131.54,131.48,7.08620394]
[1763576477282,106.5211,131.54,131.47,10.47620394]
[1763576477482,1.95,131.56,131.48,10.47620394]
[1763576477676,1.95,131.56,131.49,7.08620394]
[1763576477881,1.95,131.56,131.49,10.47620394]
[1763576478072,0.05726953,131.54,131.51,0.05636016]
[1763576478276,0.05726953,131.54,131.51,3.44636016]
[1763576478973,2.00726953,131.54,131.51,0.05636016]
[1763576479180,6.8485,131.53,131.51,0.05636016]
[1763576479382,1.95,131.52,131.51,0.05636016]
[1763576479684,6.8485,131.53,131.51,0.05636016]
[1763576479884,8.7985,131.53,131.51,0.05636016]
[1763576480583,1.95,131.52,131.51,0.05636016]
[1763576481481,6.8485,131.53,131.51,0.05636016]